bitfinex-derivatives/quotes_ETHF0:USTF0_20240910
["timestamp","ask_amount","ask_price","bid_price","bid_amount"]
[1725970439008,2.43846746,2354.1,2354.0,1.08875003]
[1725970439197,0.63721947,2354.1,2354.0,0.66398003]
[1725970439399,3.80009107,2354.1,2353.9,0.4248]
[1725970439615,0.21245947,2354.0,2353.9,0.4248]
[1725970439801,2.22613465,2354.1,2354.0,0.42478]
[1725970440000,2.22613465,2354.1,2354.0,1.08873475]
[1725970440405,2.43860943,2354.1,2354.0,1.08873475]
[1725970440608,0.21246153,2354.1,2354.0,1.08873475]
[1725970440805,0.21246146,2354.2,2354.1,0.42476]
[1725970441105,0.21246527,2354.2,2354.1,1.08871475]
[1725970441304,3.1977116,2354.3,2354.1,1.08871475]
[1725970441507,2.43841759,2354.2,2354.1,0.42476]
[1725970441707,2.43841759,2354.2,2354.1,1.08871172]
[1725970442012,0.42478,2354.1,2353.9,0.4248]
[1725970442216,2.05024136,2354.0,2353.9,0.4248]
[1725970442413,2.05024136,2354.0,2353.9,1.48716611]
[1725970442414,2.81913964,2354.0,2353.9,1.48716611]
[1725970442710,2.81913964,2354.0,2353.9,1.08880308]
[1725970442906,2.26269141,2354.0,2353.9,2.15117438]
[1725970443101,0.59316811,2354.0,2353.9,2.15118364]
[1725970443308,0.59316811,2354.0,2353.9,0.4248]
[1725970443503,0.59316811,2354.0,2353.9,2.15117154]
[1725970443704,1.01794811,2354.0,2353.9,1.72637154]
[1725970443905,0.59316811,2354.0,2353.9,1.08878905]
[1725970444101,0.98246811,2354.0,2353.9,2.15118459]
[1725970444508,0.98247759,2354.0,2353.9,2.15118459]
[1725970444718,3.20844912,2354.0,2353.9,2.15118459]
[1725970445019,3.20844912,2354.0,2353.9,1.08878905]
[1725970445405,3.20844912,2354.0,2353.9,0.4248]
[1725970445612,3.20844912,2354.0,2353.9,2.15121712]
[1725970445811,3.20844912,2354.0,2353.9,2.54961966]
[1725970446013,0.98247759,2354.0,2353.9,1.48721456]
[1725970446317,0.98247759,2354.0,2353.9,3.21355711]
[1725970447404,3.20844912,2354.0,2353.9,3.21355711]
[1725970447604,3.20844912,2354.0,2353.9,2.15114255]
[1725970449621,3.20844831,2354.0,2353.9,2.15114255]
[1725970450514,0.21247678,2354.0,2353.9,2.15114255]
[1725970450704,2.22597153,2354.1,2354.0,0.42478]
[1725970450905,2.22597153,2354.1,2354.0,2.15112255]
[1725970450906,2.43844044,2354.1,2354.0,2.15112255]
[1725970451112,2.22597153,2354.1,2354.0,6.39912255]
[1725970451312,0.21246891,2354.1,2354.0,6.39912255]
[1725970451623,2.43843636,2354.2,2354.1,0.42476]
[1725970451813,2.43843662,2354.2,2354.1,1.0887379]
[1725970452318,2.43843662,2354.2,2354.1,1.08871588]
[1725970452820,2.43843662,2354.2,2354.1,2.15103011]
[1725970453718,2.86318662,2354.2,2354.1,0.66395588]
[1725970454019,0.63721509,2354.2,2354.1,0.66395588]
[1725970454424,2.80208962,2354.2,2354.1,0.66395588]
[1725970454719,5.57522315,2354.2,2354.1,0.66395588]
[1725970455121,5.57522436,2354.2,2354.1,0.66395588]
[1725970456418,5.57522436,2354.2,2354.1,0.66398748]
[1725970456815,5.57522436,2354.2,2354.0,0.42477]
[1725970457117,2.82542718,2354.1,2354.0,0.42477]
[1725970457420,2.82542718,2354.1,2354.0,2.15114603]
[1725970458319,2.43982718,2354.1,2354.0,2.15114603]
[1725970458823,2.43982718,2354.1,2354.0,3.47903907]
[1725970459019,2.22735347,2354.1,2354.0,2.15114603]
[1725970459321,2.22735347,2354.1,2354.0,3.479049]
[1725970459619,2.7729716,2354.4,2354.1,1.06192]
[1725970459817,3.32756592,2354.6,2354.4,1.48649]
[1725970459818,1.11363726,2354.5,2354.4,1.48649]
[1725970460015,2.22734104,2354.7,2354.4,1.48649]
[1725970460016,1.11363726,2354.7,2354.4,20.91981498]
[1725970460217,1.11363726,2354.7,2354.6,5.4015507]
[1725970460424,1.11363726,2354.8,2354.7,0.42466]
[1725970460610,1.11363726,2354.8,2354.7,7.72505578]
[1725970461211,1.11363726,2354.8,2354.7,6.39757935]
[1725970462023,1.87643726,2354.8,2354.7,6.39757935]
[1725970462324,0.7628,2354.8,2354.7,5.33559821]
[1725970462521,2.43330578,2354.8,2354.7,0.66373821]
[1725970463123,2.43330578,2354.8,2354.7,1.08839821]
[1725970463423,1.87437219,2354.8,2354.7,1.08842106]
[1725970463731,1.87437219,2354.8,2354.7,5.33482106]
[1725970463912,1.11157219,2354.8,2354.7,7.98482106]
[1725970464523,1.11157219,2354.8,2354.7,1.08842106]
[1725970464824,1.11157219,2354.8,2354.7,0.66376106]
[1725970465121,1.11157219,2354.8,2354.5,2.65]
[1725970465325,1.11157219,2354.8,2354.7,0.42466]
[1725970465918,1.11157219,2354.8,2354.7,1.08841525]
[1725970466224,1.11157219,2354.8,2354.7,0.42466]
[1725970467125,1.11157219,2355.0,2354.8,0.42464]
[1725970467325,1.11157219,2355.0,2354.9,0.42462]
[1725970468037,1.11157219,2355.0,2354.8,0.42463]
[1725970468419,1.11157219,2355.0,2354.7,2.65]
[1725970468724,1.11157219,2355.0,2354.3,45.98980541]
[1725970468725,1.11157219,2354.9,2354.5,2.65]
[1725970468929,1.11157219,2354.9,2354.7,0.42465]
[1725970471615,1.11157219,2355.0,2354.5,2.65]
[1725970471820,1.11157219,2354.9,2354.7,0.42465]
[1725970472227,1.11157219,2354.9,2354.5,2.65]
[1725970472432,1.11157219,2354.8,2354.6,0.42467]
[1725970474131,1.11157219,2354.8,2354.6,0.42466]
[1725970474525,1.11157219,2354.9,2354.6,0.42466]
[1725970475034,1.11157219,2354.8,2354.7,0.42466]
[1725970475237,1.11157219,2354.9,2354.7,0.42466]
[1725970475630,1.11157219,2354.8,2354.7,0.42466]
[1725970475925,1.50547219,2354.9,2354.7,0.42466]
[1725970476336,1.11157219,2354.8,2354.7,0.42466]
[1725970476537,1.11157219,2354.8,2354.7,6.8964]
[1725970476836,1.50547219,2355.1,2354.9,0.42462]
[1725970477238,1.50547219,2355.1,2354.9,0.42461]
[1725970477426,1.50547219,2355.1,2354.7,3.4051]
[1725970477631,0.3939,2355.1,2355.0,0.4246]
[1725970478541,1.50547219,2355.1,2355.0,0.4246]
[1725970479431,1.50547219,2355.1,2354.9,0.42462]
[1725970479432,2.27687219,2355.1,2354.9,0.42462]
[1725970481231,1.11157219,2355.0,2354.9,0.42462]
[1725970481432,0.3719,2355.0,2354.9,0.42462]
[1725970481937,0.3719,2355.0,2354.8,0.42463]
[1725970482445,0.3719,2355.0,2354.9,0.42462]
[1725970482836,0.3719,2355.0,2354.8,0.42462]
[1725970483147,1.48347219,2355.0,2354.8,0.42463]
[1725970484743,0.3719,2355.0,2354.8,0.42463]
[1725970484938,1.48347219,2355.0,2354.8,0.42463]
[1725970485139,1.48347219,2355.0,2354.5,4.56422]
[1725970485340,1.48347219,2355.0,2354.8,0.42463]
[1725970485641,1.48347219,2355.0,2354.8,0.42464]
[1725970487246,1.90807219,2355.0,2354.5,3.4035]
[1725970487446,1.90807219,2355.0,2354.5,3.0181]
[1725970488046,1.90807219,2355.0,2354.7,0.42464]
[1725970488551,1.90807219,2355.0,2354.8,0.42464]
[1725970488751,1.90807219,2355.0,2354.5,3.0181]
[1725970489146,1.90808219,2355.0,2354.8,0.42463]
[1725970489946,1.11157219,2354.9,2354.8,0.42463]
[1725970490145,1.90808219,2355.0,2354.8,0.42463]
[1725970490643,1.53619219,2354.9,2354.8,0.42463]
[1725970490955,1.11157219,2354.9,2354.8,0.42463]
[1725970495357,1.53619219,2354.9,2354.7,1.64464]
[1725970495565,1.11157219,2354.8,2354.7,1.64464]
[1725970498558,1.11126598,2354.8,2354.7,1.64464]
[1725970498757,1.11126467,2354.8,2354.7,2.30841504]
[1725970499553,1.67050578,2354.8,2354.7,2.30841504]
[1725970499763,1.67050578,2354.8,2354.7,1.64464]
[1725970500256,2.09514578,2354.8,2354.7,0.66379295]
[1725970500454,0.42466,2354.7,2354.6,0.0449]
[1725970500647,2.62422264,2354.7,2354.6,0.0449]
[1725970500851,1.1117117,2354.8,2354.6,4.05238196]
[1725970501053,1.1117117,2354.8,2354.7,43.33309433]
[1725970501253,1.1117117,2354.8,2354.7,44.39505557]
[1725970501452,1.1117117,2354.8,2354.7,48.64145557]
[1725970501665,1.1117117,2354.8,2354.7,48.95565557]
[1725970502157,1.1117117,2354.8,2354.7,47.22991]
[1725970502362,1.1117117,2354.8,2354.7,48.95559567]
[1725970502558,1.1117117,2354.8,2354.7,56.01724567]
[1725970502762,1.11220424,2355.0,2354.9,1.48618]
[1725970502961,1.11220424,2355.0,2354.9,5.60076364]
[1725970503259,2.7729716,2355.4,2355.3,0.42455]
[1725970503260,1.11209795,2355.4,2355.3,0.42455]
[1725970503466,1.76670366,2355.6,2355.4,0.42453]
[1725970503467,1.66770366,2355.5,2355.4,0.42453]
[1725970503657,1.66770366,2355.5,2355.4,3.77341567]
[1725970504167,1.66770366,2355.5,2355.4,5.20341567]
[1725970504659,2.83198108,2355.5,2355.4,3.73825526]
[1725970505364,0.60464004,2355.5,2355.4,3.73825526]
[1725970505568,2.83198108,2355.5,2355.4,3.07453]
[1725970505865,2.83198108,2355.5,2355.4,3.73810888]
[1725970506251,2.27284017,2355.5,2355.4,4.79981073]
[1725970506455,2.27284017,2355.5,2355.4,3.73809526]
[1725970506665,2.2728073,2355.5,2355.4,3.73809526]
[1725970506856,1.66816726,2355.5,2355.4,9.04539614]
[1725970507057,1.1120465,2355.5,2355.4,10.10672614]
[1725970507251,1.1120465,2355.6,2355.5,0.42451]
[1725970507467,1.1120465,2355.7,2355.6,0.42449]
[1725970507658,1.1120465,2355.7,2355.6,3.73805526]
[1725970507856,1.1120465,2355.7,2355.6,4.79960366]
[1725970508259,1.66816726,2355.8,2355.6,4.79960366]
[1725970508260,1.1120465,2355.8,2355.7,0.42448]
[1725970508562,1.1120465,2355.8,2355.7,1.08804526]
[1725970508856,1.1120465,2355.8,2355.7,1.45464526]
[1725970509067,1.1120465,2355.8,2355.7,1.45453579]
[1725970509465,1.1120465,2355.8,2355.4,2.65]
[1725970509769,1.1120465,2355.7,2355.5,1.08798441]
[1725970509965,1.1120465,2355.7,2355.5,0.4245]
[1725970510262,1.1120465,2355.7,2355.5,4.6701]
[1725970510569,1.1120465,2355.7,2355.5,0.4245]
[1725970512465,1.1120465,2355.7,2355.6,4.13573]
[1725970512673,1.1120465,2356.1,2355.6,3.71124]
[1725970512862,1.1120465,2356.0,2355.9,2.65]
[1725970513057,1.1120465,2356.1,2356.0,0.42442]
[1725970513561,1.1120465,2356.2,2356.1,0.4244]
[1725970513961,1.1120465,2356.2,2356.0,0.42441]
[1725970514364,0.3962,2356.1,2356.0,0.42441]
[1725970515368,1.1120465,2356.3,2355.9,2.65]
[1725970515564,1.5156465,2356.3,2356.1,0.42439]
[1725970516471,1.5156465,2356.3,2356.0,0.42441]
[1725970516667,1.1120465,2356.2,2356.0,0.42441]
[1725970516966,1.5156465,2356.3,2356.1,0.4244]
[1725970517572,1.5156465,2356.3,2356.2,0.42439]
[1725970517772,0.4036,2356.3,2356.1,0.42439]
[1725970518363,0.4036,2356.3,2355.9,2.65]
[1725970518571,1.5156465,2356.3,2356.1,0.42439]
[1725970519067,1.5156465,2356.3,2356.2,0.42439]
[1725970519264,0.4036,2356.3,2356.2,0.42439]
[1725970519465,2.05326726,2356.5,2356.4,0.42435]
[1725970519466,1.1120465,2356.5,2356.4,0.42435]
[1725970519671,1.1120465,2356.5,2356.4,3.07435]
[1725970519873,1.1120465,2356.5,2356.4,6.894]
[1725970520567,1.9156665,2356.6,2356.4,6.894]
[1725970520876,1.4913465,2356.6,2356.4,3.07435]
[1725970522178,1.1120465,2356.7,2356.6,1.4851]
[1725970522366,1.1120465,2357.2,2356.6,0.21739407]
[1725970522573,1.4971465,2357.5,2357.1,2.65]
[1725970522770,0.3851,2357.5,2357.4,2.65]
[1725970523275,1.1120465,2357.8,2357.5,0.42415]
[1725970523479,0.4241,2357.8,2357.4,2.65]
[1725970523680,3.7620465,2357.6,2356.9,0.099]
[1725970523982,1.06052,2357.2,2356.7,2.65]
[1725970524276,1.20214,2357.1,2356.7,43.87428]
[1725970524478,0.7779,2357.1,2356.8,0.42427]
[1725970524682,1.20213,2357.1,2356.8,0.42427]
[1725970525178,0.7779,2357.1,2356.9,3.07425]
[1725970525371,0.3826,2357.1,2356.9,6.8924]
[1725970525567,0.3826,2357.1,2357.0,4.66664]
[1725970525980,0.3826,2357.1,2357.0,45.46664]
[1725970526287,0.3826,2357.1,2357.0,40.8]
[1725970526677,0.3826,2357.1,2356.9,3.07425]
[1725970526876,0.3742,2357.0,2356.9,3.07425]
[1725970527372,0.3742,2357.0,2356.9,2.65]
[1725970528084,0.3742,2357.0,2356.9,3.07426]
[1725970528277,0.7698,2357.0,2356.9,3.07426]
[1725970529577,0.7698,2357.0,2356.9,2.65]
[1725970529779,0.7698,2357.0,2356.7,2.65]
[1725970529974,0.7698,2357.0,2356.9,0.42426]
[1725970530881,0.3956,2357.0,2356.9,3.07426]
[1725970531388,0.81984,2357.0,2356.9,2.65]
[1725970531887,0.3956,2357.0,2356.9,0.42426]
[1725970533379,0.3956,2357.0,2356.9,3.07426]
[1725970534586,0.3738,2357.2,2357.1,0.42422]
[1725970534781,0.3738,2357.2,2357.1,3.07422]
[1725970535494,0.3738,2357.2,2356.9,2.65]
[1725970535691,0.42423,2357.1,2356.9,3.07425]
[1725970536384,0.42423,2357.1,2357.0,0.42424]
[1725970536596,0.42423,2357.1,2356.9,3.07425]
[1725970536890,0.42423,2357.1,2356.9,2.65]
[1725970537090,0.42423,2357.1,2357.0,0.42424]
[1725970537291,0.42424,2357.0,2356.9,2.65]
[1725970537494,0.42424,2357.1,2356.9,3.07425]
[1725970537686,1.43434,2357.2,2356.9,3.07424]
[1725970537887,0.42424,2357.1,2357.0,0.42424]
[1725970539387,0.42424,2357.0,2356.9,3.07425]
[1725970539594,0.42424,2357.0,2356.9,3.11915]
[1725970540281,0.42424,2357.1,2357.0,0.42424]
[1725970541096,0.79802,2357.2,2357.1,0.42422]
[1725970541392,0.3738,2357.2,2357.1,3.07422]
[1725970541592,0.79801,2357.2,2357.1,3.07422]
[1725970542688,1.48485,2357.0,2356.9,0.0449]
[1725970542887,0.42424,2357.0,2356.9,0.0449]
[1725970543093,0.42424,2357.1,2356.9,0.0449]
[1725970543289,0.42422,2357.1,2357.0,0.42424]
[1725970543688,0.79802,2357.2,2357.1,0.42422]
[1725970544397,0.42422,2357.1,2357.0,0.42423]
[1725970544591,0.42422,2357.1,2356.9,2.6949]
[1725970544592,0.79801,2357.2,2357.1,0.42422]
[1725970545189,0.42421,2357.2,2357.1,0.42422]
[1725970546793,1.1804,2357.3,2357.0,0.42423]
[1725970546794,0.42423,2357.1,2357.0,0.42423]
[1725970547892,0.42422,2357.2,2357.1,0.42422]
[1725970550998,0.42423,2357.1,2357.0,0.42423]
[1725970551495,1.1804,2357.3,2357.0,4.2424]
[1725970551801,0.7856,2357.3,2357.1,3.0248]
[1725970551996,1.20979,2357.3,2357.2,0.42421]
[1725970552391,1.20979,2357.3,2357.1,3.44901]
[1725970552593,0.7856,2357.3,2357.2,0.42421]
[1725970553796,0.42421,2357.2,2357.1,3.44901]
[1725970553995,0.42421,2357.2,2357.1,2.65]
[1725970554199,1.84608,2357.3,2357.1,2.65]
[1725970554200,0.64669,2357.3,2357.1,2.65]
[1725970554393,0.42421,2357.2,2357.1,2.65]
[1725970554599,1.06054,2357.2,2356.9,3.4654]
[1725970554796,0.3709,2357.1,2357.0,0.42424]
[1725970554999,1.5362265,2357.4,2357.0,5.30301]
[1725970555201,0.42418,2357.4,2357.3,0.42419]
[1725970555409,1.1120465,2357.4,2357.1,2.65]
[1725970555707,1.5362265,2357.4,2357.2,0.42419]
[1725970556002,0.42421,2357.2,2357.1,0.42421]
[1725970556397,0.42421,2357.2,2356.9,3.0772]
[1725970556599,1.5362565,2357.2,2357.1,0.42422]
[1725970557204,1.5362565,2357.2,2357.0,0.42423]
[1725970557205,0.42423,2357.1,2357.0,0.42423]
[1725970557394,0.3709,2357.1,2357.0,0.42423]
[1725970558094,1.4829465,2357.1,2357.0,0.42423]
[1725970559304,1.1120465,2357.1,2357.0,0.42423]
[1725970560606,1.5362865,2357.1,2356.9,3.0323]
[1725970560905,0.42424,2357.0,2356.9,3.45655]
[1725970561101,1.5362865,2357.0,2356.9,3.45655]
[1725970561606,1.5362865,2357.0,2356.9,3.0323]
[1725970562003,1.1120465,2357.0,2356.9,3.45656]
[1725970562201,2.09240726,2357.0,2356.9,3.45656]
[1725970562405,1.66816726,2357.0,2356.9,3.45656]
[1725970562706,2.09240726,2357.0,2356.9,4.11971941]
[1725970562904,2.09240726,2357.0,2356.9,3.45656]
[1725970563203,2.09240726,2357.0,2356.9,3.0323]
[1725970563394,2.09240726,2357.0,2356.9,3.73740763]
[1725970563799,1.53464506,2357.0,2356.9,3.73740763]
[1725970564598,2.09240726,2357.0,2356.9,3.31314763]
[1725970565104,2.3046242,2357.0,2356.9,3.31314763]
[1725970565305,1.8803842,2357.0,2356.9,3.73740763]
[1725970565512,1.66816726,2357.0,2356.9,4.79848615]
[1725970565804,1.88037844,2357.0,2356.9,4.79848615]
[1725970566009,1.88037844,2357.0,2356.9,3.07426]
[1725970566205,0.21221118,2357.0,2356.9,4.7985204]
[1725970566402,0.63645118,2357.0,2356.9,4.7985204]
[1725970567101,2.86379222,2357.0,2356.9,4.7985204]
[1725970567608,2.86379222,2357.0,2356.9,1.7242604]
[1725970567609,4.98501222,2357.0,2356.9,1.7242604]
[1725970567812,4.98501222,2357.0,2356.5,0.099]
[1725970567813,1.4851,2356.6,2356.5,0.099]
[1725970568110,0.42433,2356.5,2356.4,4.082]
[1725970568306,3.9654302,2356.5,2356.4,0.66335987]
[1725970568507,7.79020493,2356.5,2356.4,0.66335987]
[1725970568708,5.0088269,2356.5,2356.4,0.66335987]
[1725970568903,0.42438,2356.3,2356.1,43.87439]
[1725970569105,0.42439,2356.2,2356.1,2.65]
[1725970569402,0.63663308,2356.2,2356.1,1.72480464]
[1725970569607,0.42439,2356.2,2356.1,0.6633864]
[1725970569805,0.42439,2356.2,2355.7,3.85597498]
[1725970569806,0.42446,2355.8,2355.7,0.099]
[1725970570113,1.66841061,2355.8,2355.7,0.66348293]
[1725970570307,1.11132967,2355.8,2355.7,1.08796293]
[1725970570505,1.90192967,2355.8,2355.7,1.08796293]
[1725970570807,1.90192967,2355.8,2355.7,3.73796293]
[1725970571112,1.11132967,2355.8,2355.7,7.98276293]
[1725970571309,1.11132967,2355.9,2355.8,0.42446]
[1725970571605,1.11132967,2355.9,2355.8,1.08789993]
[1725970571910,1.11132967,2355.9,2355.7,3.07446]
[1725970573205,1.11132967,2355.9,2355.7,2.65]
[1725970573407,0.42446,2355.8,2355.7,2.65]
[1725970573708,0.42446,2355.8,2355.5,2.65]
[1725970573709,1.11132967,2355.8,2355.5,2.65]
[1725970573908,0.42449,2355.6,2355.5,2.65]
[1725970574308,0.7656,2355.7,2355.5,3.0745]
[1725970574709,1.19008,2355.7,2355.5,3.0745]
[1725970576009,1.49232967,2356.0,2355.8,0.42446]
[1725970576203,1.49232967,2356.0,2355.9,0.42444]
[1725970576204,0.381,2356.0,2355.9,0.42444]
[1725970576407,1.11132967,2356.1,2356.0,0.42442]
[1725970576600,1.11132967,2356.2,2355.9,47.6948]
[1725970576801,1.11132967,2356.4,2356.1,2.65]
[1725970577004,1.53566967,2356.5,2356.3,2.65]
[1725970577205,1.11132967,2356.5,2356.3,3.07437]
[1725970577402,2.28422967,2356.6,2356.4,0.42435]
[1725970577712,1.11132967,2356.5,2356.4,0.42435]
[1725970578012,1.11132967,2356.5,2356.4,0.7666]
[1725970578213,1.11132967,2356.5,2356.4,1.19095]
[1725970578411,2.30534967,2356.6,2356.4,0.7666]
[1725970578819,2.30534967,2356.6,2356.4,1.19095]
[1725970579610,1.88102967,2356.6,2356.4,1.19095]
[1725970580112,2.30534967,2356.6,2356.4,0.7666]
[1725970580417,2.30534967,2356.6,2356.4,1.19095]
[1725970580610,2.30534967,2356.6,2356.4,0.7666]
[1725970581012,2.30534967,2356.6,2356.4,1.19095]
[1725970581211,0.42433,2356.5,2356.3,3.07436]
[1725970581522,0.42435,2356.4,2356.3,2.65]
[1725970581711,0.42437,2356.3,2356.1,3.84669]
[1725970582814,1.11132967,2356.5,2356.4,0.42435]
[1725970583113,2.30535967,2356.6,2356.4,3.07435]
[1725970584216,1.88102967,2356.6,2356.5,0.42433]
[1725970584520,2.03321061,2356.7,2356.6,0.42431]
[1725970584521,1.90042967,2356.7,2356.6,0.42431]
[1725970584719,1.47612967,2356.7,2356.6,0.42431]
[1725970585216,1.47612967,2356.7,2356.5,0.81672]
[1725970585416,0.7891,2356.7,2356.5,0.81672]
[1725970586126,0.7891,2356.7,2356.5,0.3924]
[1725970586420,0.4243,2356.7,2356.5,0.81673]
[1725970587016,0.4243,2356.7,2356.5,0.3924]
[1725970587208,0.4243,2356.7,2356.5,0.81673]
[1725970587413,0.42431,2356.6,2356.5,0.3924]
[1725970587716,0.42431,2356.6,2356.4,2.65]
[1725970587913,0.79663,2356.5,2356.4,2.65]
[1725970588517,0.3723,2356.5,2356.4,3.07435]
[1725970589319,0.79663,2356.5,2356.4,2.65]
[1725970589519,0.42435,2356.4,2356.2,3.47368]
[1725970589720,0.82685,2356.4,2356.2,3.47368]
[1725970590418,0.82685,2356.4,2356.3,0.42437]
[1725970590721,0.82685,2356.4,2356.2,3.47367]
[1725970591819,0.4025,2356.4,2356.3,0.42437]
[1725970592022,0.82685,2356.4,2356.2,3.47367]
[1725970592924,1.11132967,2356.6,2356.5,0.42433]
[1725970593120,1.11132967,2356.7,2356.4,3.07433]
[1725970593323,0.42433,2356.5,2356.4,2.65]
[1725970593522,0.42435,2356.4,2356.3,0.42437]
[1725970593722,1.59776,2356.4,2356.2,3.47368]
[1725970594226,1.1734,2356.4,2356.3,0.42437]
[1725970594818,1.1734,2356.4,2356.1,0.4405]
[1725970595017,0.42439,2356.2,2356.1,0.0449]
[1725970595218,1.48536,2356.2,2356.1,0.0449]
[1725970595425,2.59668967,2356.2,2356.1,0.0449]
[1725970597228,6.84068967,2356.2,2356.1,0.0449]
[1725970597720,6.83739276,2356.2,2356.1,0.0449]
[1725970598832,5.72936,2356.2,2356.1,0.0449]
[1725970599121,6.83747015,2356.2,2356.1,0.0449]
[1725970599429,7.39777061,2356.2,2356.1,0.0449]
[1725970600718,13.39777061,2356.2,2356.1,0.0449]
[1725970600928,7.39777061,2356.2,2356.1,0.0449]
[1725970601222,6.83761475,2356.2,2356.1,0.0449]
[1725970601928,7.39777061,2356.2,2356.1,0.0449]
[1725970602523,5.94167769,2356.2,2356.1,0.0449]
[1725970603225,8.16622517,2356.2,2356.1,0.0449]
[1725970603419,14.16622517,2356.2,2356.1,0.0449]
[1725970603727,15.22719517,2356.2,2356.1,0.0449]
[1725970603929,0.42446,2355.8,2355.7,0.099]
[1725970604126,1.0611,2356.0,2355.6,7.27049]
[1725970604127,0.42448,2355.7,2355.6,3.46489]
[1725970604325,1.90082845,2355.9,2355.6,3.46489]
[1725970604523,0.42448,2355.7,2355.6,2.65]
[1725970604926,0.42449,2355.6,2355.4,3.46492]
[1725970605126,0.42449,2355.6,2355.5,0.42451]
[1725970605625,0.42449,2355.7,2355.5,0.42451]
[1725970606416,0.42449,2355.7,2355.4,3.0404]
[1725970606623,0.42449,2355.7,2355.5,0.4245]
[1725970607217,0.42445,2355.9,2355.7,0.42446]
[1725970607431,0.42445,2355.9,2355.8,0.3716]
[1725970608528,1.53297845,2355.9,2355.8,0.3716]
[1725970610832,1.10852845,2355.9,2355.8,0.79606]
[1725970611627,3.27420268,2356.1,2355.9,0.42444]
[1725970611827,1.66279268,2356.0,2355.9,0.42444]
[1725970612635,1.1099571,2356.0,2355.9,4.66924]
[1725970613932,1.1099571,2356.0,2355.9,4.2448]
[1725970614939,0.21230479,2356.0,2355.3,1.20597498]
[1725970615235,2.2170569,2356.1,2355.4,0.66354929]
[1725970615236,0.42452,2355.5,2355.4,0.66354929]
[1725970615428,1.5351387,2355.5,2355.3,0.7914]
[1725970615621,1.5351387,2355.5,2355.3,1.21594]
[1725970619441,1.9316387,2355.5,2355.3,1.21594]
[1725970619935,0.82102,2355.5,2355.3,1.21594]
[1725970620136,2.3050387,2355.5,2355.3,1.21594]
[1725970620737,1.8805187,2355.5,2355.4,0.42453]
[1725970621842,0.7699,2355.5,2355.4,0.42453]
[1725970622041,0.3965,2355.5,2355.4,0.42453]
[1725970622232,1.5351087,2355.6,2355.4,0.42453]
[1725970622429,1.1106187,2355.7,2355.6,0.42449]
[1725970622643,1.1106187,2355.9,2355.6,6.8948]
[1725970622942,1.1106187,2356.0,2355.9,0.42444]
[1725970623134,1.1106187,2356.1,2356.0,0.42442]
[1725970623331,1.1106187,2356.1,2356.0,0.81182]
[1725970623547,1.1106187,2356.1,2356.0,0.3874]
[1725970623941,1.1106187,2356.1,2355.3,1.75946248]
[1725970623942,5.90992806,2356.1,2355.4,1.06133]
[1725970624239,1.91441561,2356.0,2355.8,0.42445]
[1725970625235,1.91441561,2356.0,2355.7,0.42447]
[1725970625439,1.48999561,2356.0,2355.8,0.42446]
[1725970625932,1.10969561,2356.0,2355.9,0.42444]
[1725970626137,1.10969561,2356.1,2355.9,0.42444]
[1725970626447,1.53409561,2356.1,2355.9,0.42444]
[1725970626745,1.10969561,2356.0,2355.9,0.42444]
[1725970627142,1.10969561,2356.0,2355.9,4.2448]
[1725970627545,2.09032806,2356.1,2356.0,0.42442]
[1725970627546,1.10969561,2356.1,2356.0,0.42442]
[1725970628036,2.03362806,2356.2,2356.1,0.4244]
[1725970628037,1.10969561,2356.2,2356.1,0.4244]
[1725970629143,1.10969561,2356.2,2356.1,0.7991]
[1725970629843,1.10969561,2356.3,2356.2,0.42439]
[1725970630149,1.10969561,2356.5,2356.4,0.42435]
[1725970630342,2.2170569,2356.7,2356.6,0.42431]
[1725970630343,1.10969561,2356.7,2356.6,0.42431]
[1725970630946,1.10969561,2356.7,2356.6,41.22431]
[1725970631245,1.10969561,2356.7,2356.4,3.07434]
[1725970631553,1.10969561,2356.5,2356.1,3.0247]
[1725970631747,1.10969561,2356.5,2356.4,40.8]
[1725970632251,1.53402561,2356.5,2356.4,40.8]
[1725970632451,1.53402561,2356.5,2356.2,0.42437]
[1725970632649,1.53402561,2356.5,2356.3,0.42437]
[1725970632846,1.10969561,2356.5,2356.3,0.42437]
[1725970633452,1.10969561,2356.4,2356.3,0.42437]
[1725970634351,1.10969561,2356.5,2356.4,0.42435]
[1725970635351,1.10969561,2356.5,2356.3,2.65]
[1725970635558,1.10969561,2356.5,2356.3,3.07435]
[1725970636350,1.10969561,2356.5,2356.4,0.42435]
[1725970636754,1.10969561,2356.5,2356.4,0.80305]
[1725970637959,1.10969561,2356.5,2356.4,3.45305]
[1725970638164,1.10969561,2356.5,2356.4,8.36028693]
[1725970638352,1.10969561,2356.5,2356.4,8.36026093]
[1725970638659,0.4041,2357.0,2356.7,0.42429]
[1725970638857,0.82836,2357.0,2356.7,0.42429]
[1725970639653,0.4041,2357.0,2356.7,0.42429]
[1725970639857,0.42426,2356.9,2356.7,0.42429]
[1725970640056,0.82836,2357.0,2356.7,0.42429]
[1725970640450,0.4041,2357.0,2356.8,0.42428]
[1725970640754,0.4041,2357.0,2356.8,0.42427]
[1725970642660,0.82835,2357.0,2356.8,0.42428]
[1725970642867,0.82835,2357.0,2356.7,0.42428]
[1725970643160,0.82835,2357.0,2356.8,0.42427]
[1725970644066,0.82835,2357.0,2356.6,2.65]
[1725970644362,0.82836,2357.0,2356.8,0.42427]
[1725970644560,0.4041,2357.0,2356.6,3.71078]
[1725970644768,0.4041,2357.0,2356.9,0.42426]
[1725970646061,5.00518902,2357.5,2356.9,4.2424]
[1725970646259,5.00518902,2357.5,2356.8,4.09809]
[1725970646260,0.388,2357.4,2357.3,3.07419]
[1725970646461,5.00518902,2357.5,2357.4,0.42417]
[1725970647157,5.00518902,2357.5,2357.3,2.65]
[1725970647364,5.42933902,2357.5,2357.3,2.65]
[1725970647662,5.42933902,2357.5,2357.3,3.07418]
[1725970647859,5.42933902,2357.5,2357.2,0.3729]
[1725970647860,0.42417,2357.4,2357.2,0.4242]
[1725970648555,2.55516866,2357.6,2357.3,0.42418]
[1725970648556,0.42416,2357.5,2357.3,0.42418]
[1725970649365,0.82766,2357.5,2357.3,0.42418]
[1725970649960,0.82766,2357.5,2357.1,2.65]